fUSD/lending_fUSD_20240831
["ID","MTS","AMOUNT","RATE_DAILY","PERIOD"]
[336726233,1725085113640,-1637.59,0.00038356,120]
[336726234,1725085113666,-591.32,0.00038356,120]
[336726235,1725085113691,-1683.05,0.00038356,120]
[336726236,1725085113717,-877.02,0.00038356,120]
[336726237,1725085113741,-795.81,0.00038356,120]
[336726238,1725085113768,-560.83131728,0.00038356,120]
[336726239,1725085113795,-1799.57,0.00038356,120]
[336726240,1725085113820,-2067.77,0.00038356,120]
[336726241,1725085113847,-3314.7,0.00038356,120]
[336726242,1725085113873,-608.39,0.00038356,120]
[336726243,1725085113903,-1275.11,0.00038356,120]
[336726244,1725085113931,-500.0,0.00038356,120]
[336726245,1725085113962,-1665.52,0.00038356,120]
[336726246,1725085113987,-500.0,0.00038356,120]
[336726247,1725085114014,-1855.46,0.00038356,120]
[336726248,1725085114041,-500.0,0.00038356,120]
[336726249,1725085114069,-500.0,0.00038356,120]
[336726250,1725085114096,-572.01,0.00038356,120]
[336726251,1725085114121,-500.0,0.00038356,120]
[336726252,1725085114145,-500.0,0.00038356,120]
[336726253,1725085114176,-1905.21,0.00038356,120]
[336726254,1725085114201,-1704.35,0.00038356,120]
[336726255,1725085114226,-844.24,0.00038356,120]
[336726256,1725085114252,-1196.73,0.00038356,120]
[336726257,1725085114278,-500.0,0.00038356,120]
[336726258,1725085114303,-606.37,0.00038356,120]
[336726259,1725085114328,-1192.62,0.00038356,120]
[336726260,1725085114354,-19494.08,0.00038356,120]
[336726261,1725085114380,-167.39331703,0.00038356,120]
[336726262,1725085114406,-1379.1,0.00038356,120]
[336726263,1725085114431,-2076.38,0.00038356,120]
[336726264,1725085114455,-2069.4,0.00038356,120]
[336726265,1725085114480,-500.0,0.00038356,120]
[336726266,1725085114504,-573.28,0.00038356,120]
[336726267,1725085114527,-1830.7,0.00038356,120]
[336726268,1725085114551,-500.0,0.00038356,120]
[336726269,1725085114577,-16344.0,0.00038356,120]
[336726270,1725085114602,-500.0,0.00038356,120]
[336726271,1725085114628,-936.23,0.00038356,120]
[336726272,1725085114655,-505.41,0.00038356,120]
[336726273,1725085114679,-500.0,0.00038356,120]
[336726274,1725085114704,-500.0,0.00038356,120]
[336726275,1725085114728,-500.0,0.00038356,120]
[336726276,1725085114751,-500.0,0.00038356,120]
[336726277,1725085114778,-500.0,0.00038356,120]
[336726278,1725085114802,-565.82,0.00038356,120]
[336726279,1725085114828,-500.0,0.00038356,120]
[336726280,1725085114851,-500.0,0.00038356,120]
[336726281,1725085114876,-1447.27,0.00038356,120]
[336726282,1725085114901,-500.0,0.00038356,120]
[336726283,1725085114924,-500.0,0.00038356,120]
[336726284,1725085114948,-2019.52,0.00038356,120]
[336726285,1725085114972,-802.68,0.00038356,120]
[336726286,1725085114997,-1846.73,0.00038356,120]
[336726287,1725085115021,-500.0,0.00038356,120]
[336726288,1725085115046,-500.0,0.00038356,120]
[336726289,1725085115070,-6347.53,0.00038356,120]
[336726290,1725085115094,-500.0,0.00038356,120]
[336726291,1725085115118,-709.12,0.00038356,120]
[336726292,1725085115142,-500.0,0.00038356,120]
[336726293,1725085115168,-550.93095768,0.00038356,120]
[336726294,1725085115192,-500.0,0.00038356,120]
[336726295,1725085115216,-1624.05,0.00038356,120]
[336726296,1725085115240,-1465.91,0.00038356,120]
[336726297,1725085115266,-508.15,0.00038356,120]
[336726298,1725085115291,-1510.32,0.00038356,120]
[336726299,1725085115316,-1707.44,0.00038356,120]
[336726300,1725085115340,-500.0,0.00038356,120]
[336726301,1725085115366,-2842.73,0.00038356,120]
[336726302,1725085115390,-1745.59,0.00038356,120]
[336726303,1725085115417,-1426.61,0.00038356,120]
[336726304,1725085115440,-500.0,0.00038356,120]
[336726305,1725085115466,-657.37,0.00038356,120]
[336726306,1725085115491,-500.0,0.00038356,120]
[336726307,1725085115517,-500.0,0.00038356,120]
[336726308,1725085115544,-829.84,0.00038356,120]
[336726309,1725085115569,-500.0,0.00038356,120]
[336726310,1725085115593,-500.0,0.00038356,120]
[336726311,1725085115624,-695.91,0.00038356,120]
[336726312,1725085115656,-508.01,0.00038356,120]
[336726313,1725085115685,-500.0,0.00038356,120]
[336726314,1725085115716,-7185.61,0.00038356,120]
[336726315,1725085115749,-500.0,0.00038356,120]
[336726316,1725085115781,-1862.6,0.00038356,120]
[336726317,1725085115814,-500.0,0.00038356,120]
[336726318,1725085115848,-500.0,0.00038356,120]
[336726319,1725085115880,-165.65982618,0.00038356,120]
[336726320,1725085115910,-500.0,0.00038356,120]
[336726321,1725085115942,-500.67670753,0.00038356,120]
[336726322,1725085115972,-500.0,0.00038356,120]
[336726323,1725085116001,-1694.24,0.00038356,120]
[336726324,1725085116031,-500.0,0.00038356,120]
[336726325,1725085116063,-9549.71,0.00038356,120]
[336726326,1725085116096,-1329.5,0.00038356,120]
[336726327,1725085116129,-500.0,0.00038356,120]
[336726328,1725085116163,-500.0,0.00038356,120]
[336726329,1725085116191,-500.0,0.00038356,30]
[336726330,1725085116220,-500.0,0.00038356,120]
[336726331,1725085116253,-306.17243861,0.00038356,120]
[336726332,1725085116284,-1254.74,0.00038356,120]
[336726333,1725085116313,-500.0,0.00038356,120]
[336726334,1725085116345,-502.30936887,0.00038356,120]
[336726335,1725085116376,-701.74,0.00038356,120]
[336726336,1725085116405,-17344.61,0.00038356,120]
[336726337,1725085116433,-500.0,0.00038356,120]
[336726338,1725085116463,-500.0,0.00038356,120]
[336726339,1725085117405,-1718.9,0.00038356,120]
[336726340,1725085117437,-1266.46,0.00038356,120]
[336726341,1725085117461,-1599.11,0.00038356,120]
[336726342,1725085117485,-500.0,0.00038356,120]
[336726343,1725085117510,-500.0,0.00038356,120]
[336726344,1725085117534,-500.0,0.00038356,120]
[336726345,1725085117559,-536.3,0.00038356,120]
[336726346,1725085117583,-500.0,0.00038356,120]
[336726347,1725085117609,-500.0,0.00038356,120]
[336726348,1725085117634,-1416.58,0.00038356,120]
[336726349,1725085117659,-1344.35,0.00038356,120]
[336726350,1725085117684,-500.0,0.00038356,120]
[336726351,1725085117709,-1308.79,0.00038356,120]
[336726352,1725085117733,-1065.87,0.00038356,120]
[336726353,1725085117758,-598.48,0.00038356,120]
[336726354,1725085117787,-500.0,0.00038356,120]
[336726355,1725085117812,-934.02,0.00038356,120]
[336726356,1725085117837,-1376.61,0.00038356,120]
[336726357,1725085117863,-2496.8,0.00038356,120]
[336726358,1725085117893,-1682.93,0.00038356,120]
[336726359,1725085117920,-500.0,0.00038356,120]
[336726360,1725085117946,-500.0,0.00038356,120]
[336726361,1725085117973,-500.0,0.00038356,120]
[336726362,1725085117999,-1537.85,0.00038356,120]
[336726363,1725085118023,-500.0,0.00038356,120]
[336726364,1725085118048,-546.73,0.00038356,120]
[336726365,1725085118073,-500.0,0.00038356,120]
[336726366,1725085118099,-211.24529021,0.00038356,120]
[336726367,1725085118125,-500.0,0.00038356,120]
[336726368,1725085118150,-500.0,0.00038356,120]
[336726369,1725085118178,-500.0,0.00038356,120]
[336726370,1725085118205,-710.47,0.00038356,120]
[336726371,1725085118233,-1026.63,0.00038356,120]
[336726372,1725085118261,-500.0,0.00038356,120]
[336726373,1725085118288,-1312.14,0.00038356,120]
[336726374,1725085118314,-500.0,0.00038356,120]
[336726375,1725085118341,-1653.03,0.00038356,120]
[336726376,1725085118368,-158.15602822,0.00038356,120]
[336726377,1725085118395,-6675.51,0.00038356,120]
[336726378,1725085118421,-500.0,0.00038356,120]
[336726379,1725085118448,-500.0,0.00038356,120]
[336726380,1725085118474,-500.0,0.00038356,120]
[336726381,1725085118500,-802.15,0.00038356,120]
[336726382,1725085118525,-522.63,0.00038356,120]
[336726383,1725085118552,-500.0,0.00038356,120]
[336726384,1725085118578,-500.0,0.00038356,120]
[336726385,1725085118606,-500.0,0.00038356,120]
[336726386,1725085118633,-520.04,0.00038356,120]
[336726387,1725085118663,-6155.51,0.00038356,120]
[336726388,1725085118690,-2507.7,0.00038356,120]
[336726389,1725085118716,-1148.46,0.00038356,120]
[336726390,1725085118746,-559.08719978,0.00038356,120]
[336726391,1725085118776,-500.0,0.00038356,120]
[336726392,1725085118801,-554.41,0.00038356,120]
[336726393,1725085118829,-1325.16,0.00038356,120]
[336726394,1725085118856,-795.3,0.00038356,120]
[336726395,1725085118884,-2578.35,0.00038356,120]
[336726396,1725085118912,-500.0,0.00038356,120]
[336726397,1725085118938,-1041.31,0.00038356,120]
[336726398,1725085118965,-1041.31,0.00038356,120]
[336726399,1725085118990,-1041.31,0.00038356,120]
[336726400,1725085119016,-1311.27,0.00038356,120]
[336726401,1725085119040,-1041.31,0.00038356,120]
[336726402,1725085119066,-500.0,0.00038356,120]
[336726403,1725085119091,-500.0,0.00038356,120]
[336726404,1725085119117,-1041.31,0.00038356,120]
[336726405,1725085119143,-1041.31,0.00038356,120]
[336726406,1725085119170,-1041.31,0.00038356,120]
[336726407,1725085119198,-1407.95,0.00038356,120]
[336726408,1725085119225,-500.0,0.00038356,120]
[336726409,1725085119308,-1041.31,0.00038356,120]
[336726410,1725085119336,-1041.31,0.00038356,120]
[336726411,1725085119361,-1041.31,0.00038356,120]
[336726412,1725085119387,-1041.31,0.00038356,120]
[336726413,1725085119412,-1041.31,0.00038356,120]
[336726414,1725085119438,-1041.31,0.00038356,120]
[336726415,1725085119464,-1041.31,0.00038356,120]
[336726416,1725085119489,-1863.91,0.00038356,120]
[336726417,1725085119515,-500.0,0.00038356,120]
[336726418,1725085119540,-1041.31,0.00038356,120]
[336726419,1725085119568,-500.0,0.00038356,120]
[336726420,1725085119594,-3941.89,0.00038356,120]
[336726421,1725085119620,-1041.31,0.00038356,120]
[336726422,1725085119647,-2607.82,0.00038356,120]
[336726423,1725085119675,-1041.31,0.00038356,120]
[336726424,1725085119700,-1041.31,0.00038356,120]
[336726425,1725085119726,-1041.31,0.00038356,120]
[336726426,1725085119751,-1041.31,0.00038356,120]
[336726427,1725085119987,-1041.31,0.00038356,120]
[336726428,1725085120013,-1041.31,0.00038356,120]
[336726429,1725085120038,-1041.31,0.00038356,120]
[336726430,1725085120063,-1041.53931617,0.00038356,120]
[336726431,1725085120087,-500.0,0.00038356,120]
[336726432,1725085120112,-500.0,0.00038356,120]
[336726433,1725085120137,-1652.24,0.00038356,120]
[336726434,1725085120164,-291.80298502,0.00038356,120]
[336726435,1725085120189,-649.43101882,0.00038356,120]
[336726436,1725085120214,-641.76,0.00038356,120]
[336726437,1725085120240,-3058.12,0.00038356,120]
[336726438,1725085120264,-854.31,0.00038356,120]
[336726439,1725085120289,-500.0,0.00038356,120]
[336726440,1725085120314,-500.0,0.00038356,120]
[336726441,1725085120340,-3298.68,0.00038356,120]
[336726442,1725085120365,-1830.04,0.00038356,120]
[336726443,1725085120389,-527.05,0.00038356,120]
[336726444,1725085120415,-500.0,0.00038356,120]
[336726445,1725085120440,-225.19872976,0.00038356,120]
[336726446,1725085120465,-500.0,0.00038356,120]
[336726447,1725085120491,-500.0,0.00038356,120]
[336726448,1725085120514,-500.0,0.00038356,120]
[336726449,1725085120538,-3711.8,0.00038356,120]
[336726450,1725085120562,-616.77,0.00038356,120]
[336726451,1725085120588,-500.0,0.00038356,120]
[336726452,1725085120614,-2261.76,0.00038356,120]
[336726453,1725085120640,-956.29,0.00038356,120]
[336726454,1725085120664,-500.0,0.00038356,120]
[336726455,1725085120691,-500.0,0.00038356,120]
[336726456,1725085120716,-500.0,0.00038356,120]
[336726457,1725085120742,-3724.98,0.00038356,120]
[336726458,1725085120766,-675.48,0.00038356,120]
[336726459,1725085120794,-500.0,0.00038356,120]
[336726460,1725085120820,-500.0,0.00038356,120]
[336726461,1725085120845,-163.57299337,0.00038356,120]
[336726462,1725085120872,-500.0,0.00038356,120]
[336726463,1725085120896,-231.46992502,0.00038356,120]
[336726464,1725085120922,-500.0,0.00038356,120]
[336726465,1725085120947,-979.96,0.00038356,120]
[336726466,1725085120973,-532.04,0.00038356,120]
[336726467,1725085120999,-539.20164784,0.00038356,120]
[336726468,1725085121024,-1078.05,0.00038356,120]
[336726469,1725085121051,-1120.41,0.00038356,120]
[336726470,1725085121076,-1968.69,0.00038356,120]
[336726471,1725085121106,-4649.47,0.00038356,120]
[336726472,1725085121134,-528.35,0.00038356,120]
[336726473,1725085121160,-500.0,0.00038356,120]
[336726474,1725085121188,-9499.71,0.00038356,120]
[336726475,1725085121216,-500.0,0.00038356,120]
[336726476,1725085121242,-500.0,0.00038356,120]
[336726477,1725085121268,-500.0,0.00038356,120]
[336726478,1725085121295,-2023.94,0.00038356,120]
[336726479,1725085121321,-500.0,0.00038356,120]
[336726480,1725085121347,-1332.09,0.00038356,120]
[336726481,1725085121374,-543.53295487,0.00038356,120]
[336726482,1725085121400,-500.0,0.00038356,120]
[336726483,1725085121427,-876.79,0.00038356,120]
[336726484,1725085121454,-500.0,0.00038356,120]
[336726485,1725085121481,-1367.12,0.00038356,120]
[336726486,1725085121508,-500.0,0.00038356,120]
[336726487,1725085121536,-2302.97,0.00038356,120]
[336726488,1725085121562,-2989.98,0.00038356,120]
[336726489,1725085121589,-500.0,0.00038356,120]
[336726490,1725085121615,-1307.87,0.00038356,120]
[336726491,1725085121641,-26611.03,0.00038356,120]
[336726492,1725085121666,-500.0,0.00038356,120]
[336726493,1725085121692,-500.0,0.00038356,120]
[336726494,1725085121718,-1296.01,0.00038356,120]
[336726495,1725085121744,-1533.32,0.00038356,120]
[336726496,1725085121771,-4152.87,0.00038356,120]
[336726497,1725085121798,-500.0,0.00038356,120]
[336726498,1725085121823,-500.0,0.00038356,120]
[336726499,1725085121848,-4747.14,0.00038356,120]
[336726500,1725085121874,-548.23996434,0.00038356,120]
[336726501,1725085121901,-500.0,0.00038356,120]
[336726502,1725085121929,-600.74,0.00038356,120]
[336726503,1725085121955,-5814.25,0.00038356,120]
[336726504,1725085121982,-13203.24,0.00038356,120]
[336726505,1725085122009,-629.87,0.00038356,120]
[336726506,1725085122038,-1062.71,0.00038356,120]
[336726507,1725085122063,-533.34,0.00038356,120]
[336726508,1725085122089,-1824.21,0.00038356,120]
[336726509,1725085122115,-1015.22,0.00038356,120]
[336726510,1725085122139,-500.0,0.00038356,120]
[336726511,1725085122165,-500.0,0.00038356,120]
[336726512,1725085122190,-500.0,0.00038356,120]
[336726513,1725085122216,-6986.18,0.00038356,120]
[336726514,1725085122242,-500.0,0.00038356,120]
[336726515,1725085122355,-951.23,0.00038356,120]
[336726516,1725085122423,-5481.44,0.00038356,120]
[336726517,1725085122449,-894.49,0.00038356,120]
[336726518,1725085122476,-842.88,0.00038356,120]
[336726519,1725085122502,-500.00201966,0.00038356,120]
[336726520,1725085122527,-500.0,0.00038356,120]
[336726521,1725085122552,-437.51068528,0.00038356,120]
[336726522,1725085122577,-500.0,0.00038356,120]
[336726523,1725085122604,-525.84705836,0.00038356,120]
[336726524,1725085122630,-4799.76,0.00038356,120]
[336726525,1725085122657,-500.0,0.00038356,120]
[336726526,1725085122684,-480.63737781,0.00038356,120]
[336726527,1725085122711,-677.22,0.00038356,120]
[336726528,1725085122736,-1186.34,0.00038356,120]
[336726529,1725085122761,-500.0,0.00038356,120]
[336726530,1725085122795,-500.0,0.00038356,120]
[336726531,1725085122820,-767.11,0.00038356,120]
[336726532,1725085122846,-5075.61,0.00038356,120]
[336726533,1725085122872,-380.37195709,0.00038356,120]
[336726534,1725085122897,-500.0,0.00038356,120]
[336726535,1725085122921,-500.0,0.00038356,120]
[336726536,1725085122946,-500.0,0.00038356,120]
[336726537,1725085122971,-862.19,0.00038356,120]
[336726538,1725085122995,-500.0,0.00038356,120]
[336726539,1725085123020,-528.15,0.00038356,120]
[336726540,1725085123044,-562.28,0.00038356,120]
[336726541,1725085123068,-1245.25,0.00038356,120]
[336726542,1725085123094,-825.37,0.00038356,120]
[336726543,1725085123120,-1653.61,0.00038356,120]
[336726544,1725085123147,-1753.96,0.00038356,120]
[336726545,1725085123175,-2000.96,0.00038356,120]
[336726546,1725085123202,-500.0,0.00038356,120]
[336726547,1725085123228,-1013.59,0.00038356,120]
[336726548,1725085123253,-500.0,0.00038356,120]
[336726549,1725085123279,-1776.62,0.00038356,120]
[336726550,1725085123306,-500.0,0.00038356,120]
[336726551,1725085123332,-500.0,0.00038356,120]
[336726552,1725085123360,-3566.1,0.00038356,120]
[336726553,1725085123387,-500.0,0.00038356,120]
[336726554,1725085123414,-500.0,0.00038356,120]
[336726555,1725085123440,-3910.3,0.00038356,120]
[336726556,1725085123464,-1570.05,0.00038356,120]
[336726557,1725085123488,-764.94,0.00038356,120]
[336726558,1725085123512,-500.0,0.00038356,120]
[336726559,1725085123538,-500.0,0.00038356,120]
[336726560,1725085123565,-500.0,0.00038356,120]
[336726561,1725085123595,-500.0,0.00038356,120]
[336726562,1725085123622,-500.0,0.00038356,120]
[336726563,1725085123651,-500.0,0.00038356,120]
[336726564,1725085123686,-500.0,0.00038356,120]
[336726565,1725085123710,-500.0,0.00038356,120]
[336726566,1725085123734,-883.9,0.00038356,120]
[336726567,1725085123758,-500.0,0.00038356,120]
[336726568,1725085123784,-500.0,0.00038356,120]
[336726569,1725085123810,-696.93,0.00038356,120]
[336726570,1725085123836,-511.86901558,0.00038356,120]
[336726571,1725085123864,-500.0,0.00038356,120]
[336726572,1725085123891,-500.0,0.00038356,120]
[336726573,1725085123918,-500.0,0.00038356,120]
[336726574,1725085123943,-500.0,0.00038356,120]
[336726575,1725085123969,-500.0,0.00038356,120]
[336726576,1725085123997,-1372.32,0.00038356,120]
[336726577,1725085124022,-500.0,0.00038356,120]
[336726578,1725085124047,-833.92,0.00038356,120]
[336726579,1725085124073,-500.0,0.00038356,120]
[336726580,1725085124101,-3784.25,0.00038356,120]
[336726581,1725085124127,-624.70121767,0.00038356,120]
[336726582,1725085124152,-500.0,0.00038356,120]
[336726583,1725085124180,-664.41,0.00038356,120]
[336726584,1725085124204,-500.0,0.00038356,120]
[336726585,1725085124229,-3255.01,0.00038356,120]
[336726586,1725085124254,-1438.05,0.00038356,120]
[336726587,1725085124278,-500.0,0.00038356,120]
[336726588,1725085124302,-863.53,0.00038356,120]
[336726589,1725085124327,-193.39088493,0.00038356,120]
[336726590,1725085124352,-250.26650012,0.00038356,60]
[336726591,1725085124378,-150.083107,0.00038398,120]
[336726592,1725085124403,-639.769619,0.000384,33]
[336726593,1725085124429,-150.083107,0.00038498,119]
[336726594,1725085124454,-1000.0,0.00038547,120]
[336726595,1725085124480,-150.083107,0.00038598,120]
[336726596,1725085124507,-2000.0,0.00038626,120]
[336726597,1725085124535,-150.083107,0.00038698,120]
[336726598,1725085124560,-212.0,0.0003879,30]
[336726599,1725085124590,-1000.0,0.00038841,120]
[336726600,1725085124618,-150.083107,0.00038898,117]
[336726601,1725085124644,-1412.45858078,0.000389,30]
[336726602,1725085124669,-2142.76,0.00038904,120]
[336726603,1725085124694,-500.0,0.00038904,120]
[336726604,1725085125025,-500.0,0.00038904,120]
[336726605,1725085125051,-500.0,0.00038904,120]
[336726606,1725085125075,-500.0,0.00038904,120]
[336726607,1725085125102,-500.0,0.00038904,120]
[336726608,1725085125128,-500.0,0.00038904,120]
[336726609,1725085125154,-500.0,0.00038904,120]
[336726610,1725085125179,-500.0,0.00038904,120]
[336726611,1725085125205,-500.0,0.00038904,120]
[336726612,1725085125231,-500.0,0.00038904,120]
[336726613,1725085125259,-500.0,0.00038904,120]
[336726614,1725085125284,-500.0,0.00038904,120]
[336726615,1725085125309,-503.24744787,0.00038904,120]
[336726616,1725085125335,-500.0,0.00038904,120]
[336726617,1725085125361,-500.0,0.00038904,120]
[336726618,1725085125387,-467.66199936,0.00038904,120]
[336726619,1725085125415,-500.0,0.00038904,120]
[336726620,1725085125440,-500.0,0.00038904,120]
[336726621,1725085125465,-500.0,0.00038904,120]
[336726622,1725085125489,-500.0,0.00038904,120]
[336726623,1725085125514,-500.0,0.00038904,120]
[336726624,1725085125539,-500.0,0.00038904,120]
[336726625,1725085125563,-500.0,0.00038904,120]
[336726626,1725085125588,-500.0,0.00038904,120]
[336726627,1725085125614,-500.0,0.00038904,120]
[336726628,1725085125639,-500.0,0.00038904,120]
[336726629,1725085125663,-500.0,0.00038904,120]
[336726630,1725085125688,-500.0,0.00038904,120]
[336726631,1725085125711,-500.0,0.00038904,120]
[336726632,1725085125735,-500.0,0.00038904,120]
[336726633,1725085125760,-500.0,0.00038904,120]
[336726634,1725085125786,-500.0,0.00038904,120]
[336726635,1725085125810,-500.0,0.00038904,120]
[336726636,1725085125834,-500.0,0.00038904,120]
[336726637,1725085125858,-500.0,0.00038904,120]
[336726638,1725085125882,-500.0,0.00038904,120]
[336726639,1725085125906,-500.0,0.00038904,120]
[336726640,1725085125930,-500.0,0.00038904,120]
[336726641,1725085125954,-500.0,0.00038904,120]
[336726642,1725085125978,-500.0,0.00038904,120]
[336726643,1725085126002,-500.0,0.00038904,120]
[336726644,1725085126026,-500.0,0.00038904,120]
[336726645,1725085126051,-500.0,0.00038904,120]
[336726646,1725085126075,-500.0,0.00038904,120]
[336726647,1725085126100,-500.0,0.00038904,120]
[336726648,1725085126124,-500.0,0.00038904,120]
[336726649,1725085126149,-500.0,0.00038904,120]
[336726650,1725085126175,-519.84817514,0.00038904,120]
[336726651,1725085126200,-500.0,0.00038904,120]
[336726652,1725085126226,-500.0,0.00038904,120]
[336726653,1725085126251,-500.0,0.00038904,120]
[336726654,1725085126277,-500.0,0.00038904,120]
[336726655,1725085126303,-543.33,0.00038904,120]
[336726656,1725085126329,-500.0,0.00038904,120]
[336726657,1725085126356,-500.0,0.00038904,120]
[336726658,1725085126380,-511.03397733,0.00038904,120]
[336726659,1725085126405,-500.0,0.00038904,120]
[336726660,1725085126431,-500.0,0.00038904,120]
[336726661,1725085126455,-500.0,0.00038904,120]
[336726662,1725085126480,-1222.92,0.00038904,120]
[336726663,1725085126504,-855.57,0.00038904,120]
[336726664,1725085126529,-500.0,0.00038904,120]
[336726665,1725085126554,-500.0,0.00038904,120]
[336726666,1725085126578,-500.0,0.00038904,120]
[336726667,1725085126605,-810.22,0.00038904,120]
[336726668,1725085126631,-705.93,0.00038904,120]
[336726669,1725085126656,-500.0,0.00038904,120]
[336726670,1725085126693,-1236.45,0.00038904,120]
[336726671,1725085126719,-886.41,0.00038904,120]
[336726672,1725085126744,-500.0,0.00038904,120]
[336726673,1725085126770,-500.0,0.00038904,120]
[336726674,1725085126799,-500.0,0.00038904,120]
[336726675,1725085126824,-500.0,0.00038904,120]
[336726676,1725085126909,-500.0,0.00038904,120]
[336726677,1725085126935,-1238.38,0.00038904,120]
[336726678,1725085126959,-500.0,0.00038904,120]
[336726679,1725085126987,-500.0,0.00038904,120]
[336726680,1725085127011,-500.0,0.00038904,120]
[336726681,1725085127036,-937.64,0.00038904,120]
[336726682,1725085127060,-658.82,0.00038904,120]
[336726683,1725085127084,-506.61671657,0.00038904,120]
[336726684,1725085127108,-1245.86,0.00038904,120]
[336726685,1725085127132,-540.28419234,0.00038904,120]
[336726686,1725085127156,-505.99822704,0.00038904,120]
[336726687,1725085127183,-613.16,0.00038904,120]
[336726688,1725085127211,-500.0,0.00038904,120]
[336726689,1725085127238,-500.0,0.00038904,120]
[336726690,1725085127264,-500.0,0.00038904,120]
[336726691,1725085127290,-500.0,0.00038904,120]
[336726692,1725085127316,-500.0,0.00038904,120]
[336726693,1725085127343,-2049.36,0.00038904,120]
[336726694,1725085127370,-891.88,0.00038904,120]
[336726695,1725085127396,-500.0,0.00038904,120]
[336726696,1725085127422,-524.66,0.00038904,120]
[336726697,1725085127449,-500.66415981,0.00038904,120]
[336726698,1725085127477,-879.12,0.00038904,120]
[336726699,1725085127504,-500.0,0.00038904,120]
[336726700,1725085127530,-1215.98,0.00038904,120]
[336726701,1725085127557,-500.0,0.00038904,120]
[336726702,1725085127583,-1629.63,0.00038904,120]
[336726703,1725085127612,-500.0,0.00038904,120]
[336726704,1725085127639,-835.48,0.00038904,120]
[336726705,1725085127666,-776.49,0.00038904,120]
[336726706,1725085127693,-518.23,0.00038904,120]
[336726707,1725085127721,-500.0,0.00038904,120]
[336726708,1725085127748,-500.0,0.00038904,120]
[336726709,1725085127780,-500.0,0.00038904,120]
[336726710,1725085127805,-1325.36,0.00038904,120]
[336726711,1725085127833,-500.0,0.00038904,120]
[336726712,1725085127860,-500.0,0.00038904,120]
[336726713,1725085127887,-500.0,0.00038904,120]
[336726714,1725085127912,-765.75,0.00038904,120]
[336726715,1725085127938,-500.0,0.00038904,120]
[336726716,1725085127964,-500.0,0.00038904,120]
[336726717,1725085127989,-500.0,0.00038904,120]
[336726718,1725085128014,-500.0,0.00038904,120]
[336726719,1725085128040,-500.0,0.00038904,120]
[336726720,1725085128065,-500.0,0.00038904,120]
[336726721,1725085128091,-575.93,0.00038904,120]
[336726722,1725085128116,-500.0,0.00038904,120]
[336726723,1725085128142,-500.0,0.00038904,120]
[336726724,1725085128169,-609.15,0.00038904,120]
[336726725,1725085128195,-500.0,0.00038904,120]
[336726726,1725085128221,-500.0,0.00038904,120]
[336726727,1725085128248,-747.99,0.00038904,120]
[336726728,1725085128273,-700.41,0.00038904,120]
[336726729,1725085128299,-500.0,0.00038904,120]
[336726730,1725085128325,-1498.46,0.00038904,120]
[336726731,1725085128351,-441.25440758,0.00038904,120]
[336726732,1725085128376,-500.0,0.00038904,120]